Cogmind - Beta 14 @@@ ROGUE MODE // 2025.03.20 @ 20:47:12 Player: kat Result: Self-destructed Performance ------------- Evolutions (6) 3000 Regions Visited (15) 3000 Robots Destroyed (33) 165 Value Destroyed (1231) 1231 Prototype IDs (32) 640 Alien Tech Used (0) 0 Bonus (835) 835 TOTAL SCORE: 8871 Bonus ------- Follower Combat Kills 535 Aligned with FarCom 300 Cogmind --------- Core Integrity 868/1150 Matter 61/300 Energy 590/590 System Corruption 18% Temperature Cool (0) Movement Walking (360) Ox3 Location -4/Factory Parts ------- > --- POWER (2) -------- Heavy Antimatter Reactor Reinforced Quantum Reactor > --- PROPULSION (7) --- Improved VSS Leg Improved Cesium-ion Thruster > --- UTILITY (7) ------ Advanced Coolant Injector Machine Analyzer Enhanced Optical Array 0b10 Alert Chip Hacking Suite > --- WEAPON (3) ------- (None) > --- INVENTORY (5) ---- Advanced Cryofiber Web Improved Sensor Array Improved Signal Interpreter Authchip [R/Combat] Improved Recalibrator Peak State ------------ > --- POWER ------------ Antimatter Reactor Heavy Antimatter Reactor > --- PROPULSION ------- Cesium-ion Thruster Improved Cesium-ion Thruster Nuclear Pulse Thruster Nuclear Pulse Array Field Propulsion Array > --- UTILITY ---------- Improved Cooling System Small Storage Unit Advanced Weight Redist. System Machine Analyzer Enhanced Optical Array 0b10 Alert Chip Hacking Suite > --- WEAPON ----------- Field Laser Magnetic Acceleration Cannon Remote Datajack > --- INVENTORY -------- Reinforced Quantum Reactor Reinforced Quantum Reactor Cesium-ion Thruster Advanced Coolant Injector Improved Signal Interpreter Authchip [R/Combat] Improved Recalibrator [Rating: 95] Favorites ----------- Power Ion Engine Engine Ion Engine Power Core Fusion Compressor Reactor Antimatter Reactor Propulsion Cesium-ion Thruster Treads Light Treads Leg Aluminum Leg Wheel Compact Wheel Flight Unit Cesium-ion Thruster Utility Small Storage Unit Device Advanced Weight Redist. System Storage Small Storage Unit Processor 0b10 Alert Chip Hackware Hacking Suite Protection Hardened Light Armor Plating Weapon Field Laser Energy Gun Field Laser Ballistic Gun Heavy Battle Rifle Ballistic Cannon Magnetic Acceleration Cannon Launcher Improved Grenade Launcher Special Weapon Remote Datajack Build | -11 -10 -10 -10 -9 -8 -7 -7 -7 -6 -5 -5 -5 -5 -5 -4 ------- Run | Yrd Mat Min Exi Min Mat Fac Low Low Fac Fac Was Fac Upp Upp Fac Slots Evolved 12 | . . . . . 4 2 . . 2 2 . . . . 2 Power 1 | . . . . . . . . . 1 . . . . . . Propulsion 5 | . . . . . 2 2 . . . . . . . . 1 Utility 5 | . . . . . 1 . . . 1 2 . . . . 1 Weapon 1 | . . . . . 1 . . . . . . . . . . Parts Attached 77 | 8 1 2 1 2 14 4 6 1 10 4 1 2 4 . 17 Power 13 | 1 1 . . . 1 1 3 . 3 . 1 . . . 2 Engine 6 | 1 1 . . . 1 1 1 . 1 . . . . . . Core 4 | . . . . . . . 2 . 2 . . . . . . Reactor 3 | . . . . . . . . . . . 1 . . . 2 Propulsion 29 | 4 . 2 . . 8 3 1 1 1 . . 1 2 . 6 Treads 1 | 1 . . . . . . . . . . . . . . . Leg 8 | . . 2 . . 2 . . . . . . . . . 4 Wheel 3 | 3 . . . . . . . . . . . . . . . Hover . | . . . . . . . . . . . . . . . . Flight 17 | . . . . . 6 3 1 1 1 . . 1 2 . 2 Utility 14 | 1 . . 1 . 1 . . . 2 2 . 1 2 . 4 Device 8 | . . . . . 1 . . . 1 1 . 1 2 . 2 Storage 1 | 1 . . . . . . . . . . . . . . . Processor 3 | . . . 1 . . . . . 1 . . . . . 1 Hackware 1 | . . . . . . . . . . 1 . . . . . Protection 1 | . . . . . . . . . . . . . . . 1 Artifact . | . . . . . . . . . . . . . . . . Weapon 21 | 2 . . . 2 4 . 2 . 4 2 . . . . 5 Energy Gun 10 | 1 . . . 1 3 . 1 . 2 . . . . . 2 Energy Cannon . | . . . . . . . . . . . . . . . . Ballistic Gun 6 | 1 . . . 1 . . . . 1 . . . . . 3 Ballistic Cannon 1 | . . . . . . . . . 1 . . . . . . Launcher 3 | . . . . . 1 . 1 . . 1 . . . . . Special Weapon 1 | . . . . . . . . . . 1 . . . . . Impact Weapon . | . . . . . . . . . . . . . . . . Slashing Weapon . | . . . . . . . . . . . . . . . . Piercing Weapon . | . . . . . . . . . . . . . . . . Special Melee Weapon . | . . . . . . . . . . . . . . . . Unidentified Prototypes 4 | . . . . . 1 1 . . 1 . . . . . 1 Parts Lost 24 | . . . . . . . 1 1 . 3 . . . . 19 Power 3 | . . . . . . . 1 . . 1 . . . . 1 Propulsion 9 | . . . . . . . . 1 . . . . . . 8 Utility 5 | . . . . . . . . . . 1 . . . . 4 Weapon 7 | . . . . . . . . . . 1 . . . . 6 Highest Loss Streak 8 | . . . . . . . 1 1 . 3 . . . . 8 To Critical Strikes . | . . . . . . . . . . . . . . . . Average Slot Usage (%) 93 | . 85 85 95 97 97 100 99 97 99 97 94 94 89 88 83 Engine 6 | . 14 14 14 14 9 7 3 7 2 . 4 5 5 5 . Core 1 | . . . . . . . 3 . 9 9 1 . . . . Reactor 2 | . . . . . . . . . . . 3 5 5 5 8 Leg 9 | . . 18 28 28 4 . . . . . . . . . 15 Wheel 1 | . 28 9 . . . . . . . . . . . . . Flight 21 | . . . . . 31 46 46 43 40 35 35 30 24 23 8 Device 5 | . . . . . 8 7 7 7 6 9 5 9 11 11 5 Storage 8 | . 14 14 14 14 9 7 7 7 6 5 5 5 5 5 4 Processor 10 | . . . 9 14 9 7 7 7 13 11 11 11 11 11 15 Hackware 2 | . . . . . . . . . . 5 5 5 5 5 5 Energy Gun 9 | . 14 14 14 19 16 15 7 7 12 8 5 5 5 5 5 Ballistic Gun 6 | . 14 14 14 6 9 7 7 7 4 . . . . . 7 Ballistic Cannon 1 | . . . . . . . . . 1 5 5 5 5 5 . Launcher 1 | . . . . . . . 6 7 . 1 . . . . . Special Weapon 1 | . . . . . . . . . . 1 5 5 5 5 . Peak Build Rating 95 | 6 6 7 13 16 35 44 49 46 64 72 70 74 84 84 95 Average Rating 50 | 4 6 6 11 13 32 43 47 44 60 69 67 72 81 84 85 On Entrance 40 | . 6 6 7 13 16 35 44 46 46 64 62 68 74 84 84 Naked Turns . | . . . . . . . . . . . . . . . . Heaviest Build 90 | 11 13 13 13 15 19 25 33 28 35 38 40 39 39 39 90 Greatest Support 70 | 26 26 26 20 20 40 31 34 34 35 44 44 44 49 49 70 Greatest Overweight (x) 4 | . . . . . 1 . . . . . . . . . 4 Average Overweight (x) . | . . . . . . . . . . . . . . . . Largest Inventory Capacity 8 | 8 8 8 8 8 8 8 8 8 8 8 8 8 8 8 8 Average Capacity 7 | 7 8 8 8 8 8 8 8 8 8 8 8 8 8 8 7 Most Carried 8 | 2 3 8 7 8 8 8 8 8 8 8 8 8 8 8 8 Average Carried 7 | . 2 5 7 7 7 6 7 7 7 7 7 8 7 8 7 Final Capacity 8 | 8 8 8 8 8 8 8 8 8 8 8 8 8 8 8 5 Final Carried 8 | 2 3 7 7 8 8 7 8 8 8 7 8 8 8 8 5 Class Distribution -------------------- 36% | Sprinter 28% | Mutant 22% | Scout 12% | Scavenger-Skirmisher Dominant Class ---------------- Mutant | -10/Materials Mutant | -10/Mines Mutant | -10/Exiles Mutant | -9/Mines Sprinter | -8/Materials Sprinter | -7/Factory Sprinter | -7/Lower Caves Sprinter | -7/Lower Caves Scout | -6/Factory Scout | -5/Factory Scout | -5/Waste Scout | -5/Factory Sprinter | -5/Upper Caves Sprinter | -5/Upper Caves Scavenger-Skirmisher | -4/Factory Resources | -11 -10 -10 -10 -9 -8 -7 -7 -7 -6 -5 -5 -5 -5 -5 -4 ----------- Run | Yrd Mat Min Exi Min Mat Fac Low Low Fac Fac Was Fac Upp Upp Fac Matter Collected 1281 | 182 117 23 . 31 153 60 156 21 29 8 296 . 78 . 127 Remotely . | . . . . . . . . . . . . . . . . Salvage Created 1056 | . 62 16 . . 274 . 233 27 161 . . . . . 283 Parts 75 | . 6 1 . . 16 . 16 1 18 . . . . . 17 Haulers Intercepted 3 | . . . . . 3 . . . . . . . . . . Recyclers Shooed 2 | . . . . . . . . . 1 . . . . . 1 Parts Field Recycled . | . . . . . . . . . . . . . . . . Retrieved Matter . | . . . . . . . . . . . . . . . . Parts Self-Destructed 32 | . . . . . . . 19 2 . . . . 11 . . Prevented . | . . . . . . . . . . . . . . . . Kills | -11 -10 -10 -10 -9 -8 -7 -7 -7 -6 -5 -5 -5 -5 -5 -4 ------- Run | Yrd Mat Min Exi Min Mat Fac Low Low Fac Fac Was Fac Upp Upp Fac Combat Hostiles Destroyed 19 | . 4 1 . . 2 . 6 2 . . . . . . 4 Guns 16 | . 4 1 . . 2 . 4 1 . . . . . . 4 AOE 3 | . . . . . . . 2 1 . . . . . . . Classes Destroyed 12 | . 1 . . . 3 . 1 . 4 . . . . . 3 Worker 3 | . . . . . . . . . 3 . . . . . . Builder 3 | . . . . . . . . . 2 . . . . . 1 Tunneler 1 | . . . . . . . . . . . . . . . 1 Hauler 3 | . . . . . 3 . . . . . . . . . . Recycler 1 | . . . . . . . . . 1 . . . . . . Operator 1 | . . . . . . . . . 1 . . . . . . Watcher 2 | . . . . . 1 . . . 1 . . . . . . Swarmer 7 | . 4 1 . . . . . 2 . . . . . . . Grunt 7 | . . . . . 2 . 5 . . . . . . . . Sentry 1 | . . . . . . . . . . . . . . . 1 Specialist 2 | . . . . . . . . . . . . . . . 2 Programmer 2 | . . . . . . . 1 . . . . . . . 1 Best Kill Streak 6 | . 4 1 . . 3 . 3 2 6 . . . . . 3 Combat Bots Only 4 | . 4 1 . . 2 . 3 2 . . . . . . 3 Max Kills in Single Turn 6 | . 1 1 . . 1 . 1 1 6 . . . . . 1 Gunslinging . | . . . . . . . . . . . . . . . . Exploded 1 | . . . . . . . 1 1 . . . . . . . Melee . | . . . . . . . . . . . . . . . . Uniques/NPCs Destroyed . | . . . . . . . . . . . . . . . . Combat | -11 -10 -10 -10 -9 -8 -7 -7 -7 -6 -5 -5 -5 -5 -5 -4 -------- Run | Yrd Mat Min Exi Min Mat Fac Low Low Fac Fac Was Fac Upp Upp Fac Hostile Shots Fired 252 | . 21 5 . 8 4 . 15 21 14 . . . 3 . 161 Missed 87 | . 6 1 . 4 2 . 9 15 8 . . . 2 . 40 Damage Taken 3476 | . 120 35 . 55 31 10 141 52 112 544 . . 18 . 2358 Core 456 | . 48 18 . . . . 15 . . 93 . . . . 282 Absorbed by Shields 112 | . . . . . . . . . . . . . . . 112 Regen/Repaired (Parts) 187 | . . . . . . . . . . . 56 . 63 . 68 Core Remaining (%) 93 | 100 . . . 73 100 . . 97 100 . . . . 90 . Volleys Fired 140 | . 9 3 . 16 14 . 13 2 15 4 . . 3 . 61 Largest 3 | . 2 2 . 1 3 . 3 2 3 1 . . 2 . 3 Hottest 179 | . 70 70 . 40 159 . 132 96 179 53 . . 116 . 121 Shots Fired 230 | . 18 5 . 16 39 . 29 3 29 4 . . 6 . 81 Gun 195 | . 18 5 . 16 39 . 24 2 19 . . . 3 . 69 Cannon 27 | . . . . . . . . . 10 2 . . 3 . 12 Launcher 6 | . . . . . . . 5 1 . . . . . . . Special 2 | . . . . . . . . . . 2 . . . . . Kinetic 116 | . 9 3 . 1 11 . 12 1 14 2 . . 3 . 60 Thermal 106 | . 9 2 . 15 28 . 12 1 15 . . . 3 . 21 Explosive 6 | . . . . . . . 5 1 . . . . . . . Electromagnetic . | . . . . . . . . . . . . . . . . Robot Hit Streak 14 | . 3 1 . 2 7 . 14 3 5 2 . . 3 . 12 Robot Miss Streak 7 | . 3 2 . 7 4 . 4 . 4 . . . 1 . 3 Penetration Max 1 | . . . . . . . . . . . . . . . 1 Secondary Targets 1 | . . 1 . . . . . . . . . . . . . Max Gunslinging Chain 1 | . . 1 . . . . . . . . . . . . . Shots Hit Robots 112 | . 8 1 . 5 21 . 15 2 11 2 . . 4 . 43 Core Hits 52 | . 4 1 . 1 9 . 12 3 5 . . . . . 17 Critical Kills . | . . . . . . . . . . . . . . . . Critical Parts Destroyed 1 | . . . . . . . . . . . . . . . 1 Critical Strikes 6 | . 1 . . . . . 1 . . . . . 2 . 2 Burn 4 | . 1 . . . . . 1 . . . . . 1 . 1 Destroy 1 | . . . . . . . . . . . . . . . 1 Blast 1 | . . . . . . . . . . . . . 1 . . Melee Attacks . | . . . . . . . . . . . . . . . . Impact . | . . . . . . . . . . . . . . . . Slashing . | . . . . . . . . . . . . . . . . Piercing . | . . . . . . . . . . . . . . . . Sneak Attacks . | . . . . . . . . . . . . . . . . Combat Hostiles . | . . . . . . . . . . . . . . . . Follow-up Attacks . | . . . . . . . . . . . . . . . . Damage Inflicted 3767 | . 95 12 . 63 435 . 529 196 1151 . . . 98 . 1188 Guns 2235 | . 95 12 . 63 435 . 263 39 200 . . . 35 . 1093 Cannons 195 | . . . . . . . . . 37 . . . 63 . 95 Explosions 1337 | . . . . . . . 266 157 914 . . . . . . Melee . | . . . . . . . . . . . . . . . . Ramming . | . . . . . . . . . . . . . . . . Kinetic 1361 | . 32 . . 10 134 . 143 23 84 . . . 63 . 872 Thermal 1983 | . 63 12 . 53 301 . 120 16 1067 . . . 35 . 316 Explosive 423 | . . . . . . . 266 157 . . . . . . . Electromagnetic . | . . . . . . . . . . . . . . . . Impact . | . . . . . . . . . . . . . . . . Slashing . | . . . . . . . . . . . . . . . . Piercing . | . . . . . . . . . . . . . . . . Highest Corruption 18 | . . . . . 3 . . . 3 . . . . . 18 Average Corruption 5 | . . . . . 3 . . . 1 . . . . . 9 Corruption Purged . | . . . . . . . . . . . . . . . . Corruption Blocked . | . . . . . . . . . . . . . . . . Overload Shots . | . . . . . . . . . . . . . . . . Overflow Damage 280 | . . . . . . . 2 8 270 . . . . . . Projectiles . | . . . . . . . . . . . . . . . . Explosions 280 | . . . . . . . 2 8 270 . . . . . . Melee . | . . . . . . . . . . . . . . . . Knockbacks 1 | . . . . . . . . . . . . . . . 1 Impact . | . . . . . . . . . . . . . . . . Kinetic 1 | . . . . . . . . . . . . . . . 1 Secondary . | . . . . . . . . . . . . . . . . Self-Inflicted Damage 87 | . . . . . . . 30 . 18 . . . . . 39 Shots 3 | . . . . . . . 1 . 1 . . . . . 1 Rammed . | . . . . . . . . . . . . . . . . Targets Rammed . | . . . . . . . . . . . . . . . . Kicked . | . . . . . . . . . . . . . . . . Crushed . | . . . . . . . . . . . . . . . . Highest Temperature 298 | . 90 40 . . 111 . 54 9 121 42 14 8 . . 298 Average Temperature 80 | . 43 23 . . 52 . 23 9 49 21 6 5 . . 165 Received Heat Transfer 250 | . . . . . 18 . 54 18 9 . . . 9 . 142 Effects 3 | . . . . . . . . . . . . . . . 3 Energy Bleed 1 | . . . . . . . . . . . . . . . 1 Interference 2 | . . . . . . . . . . . . . . . 2 Siege Activations . | . . . . . . . . . . . . . . . . Robots Corrupted . | . . . . . . . . . . . . . . . . Combat Hostiles . | . . . . . . . . . . . . . . . . Parts Fried . | . . . . . . . . . . . . . . . . Impact Corruptions . | . . . . . . . . . . . . . . . . Robots Melted . | . . . . . . . . . . . . . . . . Combat Hostiles . | . . . . . . . . . . . . . . . . Parts Melted 6 | . 1 . . . 1 . 1 . . . . . . . 3 Heat Transferred 3328 | . 259 37 . 125 666 . 333 37 946 . . . 148 . 777 Parts Sabotaged . | . . . . . . . . . . . . . . . . Parts Stolen . | . . . . . . . . . . . . . . . . Parts Stripped . | . . . . . . . . . . . . . . . . Power Chain Reactions . | . . . . . . . . . . . . . . . . Alert | -11 -10 -10 -10 -9 -8 -7 -7 -7 -6 -5 -5 -5 -5 -5 -4 ------- Run | Yrd Mat Min Exi Min Mat Fac Low Low Fac Fac Was Fac Upp Upp Fac Peak Influence 616 | . 115 79 . 4 110 71 . . 616 321 135 80 . . 86 Initial 301 | . . 44 . . 1 49 . . 25 301 101 80 . . 25 Average 63 | . 29 78 . . 45 49 . . 154 307 110 80 . . 21 Maximum Alert Level 2 | . . . . . . . . . 2 1 . . . . . Low Security (%) 91 | 100 100 100 . 100 100 100 . . 72 . 100 100 . . 100 Level 1 6 | . . . . . . . . . 18 100 . . . . . Level 2 1 | . . . . . . . . . 9 . . . . . . Level 3 . | . . . . . . . . . . . . . . . . Level 4 . | . . . . . . . . . . . . . . . . Level 5 . | . . . . . . . . . . . . . . . . High Security . | . . . . . . . . . . . . . . . . Max Security . | . . . . . . . . . . . . . . . . Squads Dispatched 20 | . 1 . . . . 1 . . 6 3 . . . . 9 Investigation 9 | . . . . . . 1 . . 4 3 . . . . 1 Extermination 3 | . . . . . . . . . 1 . . . . . 2 Reinforcement 7 | . 1 . . . . . . . 1 . . . . . 5 Assault 1 | . . . . . . . . . . . . . . . 1 Garrison . | . . . . . . . . . . . . . . . . Intercept . | . . . . . . . . . . . . . . . . Searches Triggered . | . . . . . . . . . . . . . . . . Construction Impeded 3 | . . . . . . . . . 1 . . . . . 2 Haulers Reinforced . | . . . . . . . . . . . . . . . . Active Scanning Responses . | . . . . . . . . . . . . . . . . Cargo Convoy Interrupts . | . . . . . . . . . . . . . . . . Stealth | -11 -10 -10 -10 -9 -8 -7 -7 -7 -6 -5 -5 -5 -5 -5 -4 --------- Run | Yrd Mat Min Exi Min Mat Fac Low Low Fac Fac Was Fac Upp Upp Fac Distress Signals 2 | . . . . . . . . . . . . . . . 2 Communications Jammed . | . . . . . . . . . . . . . . . . Distress Signals . | . . . . . . . . . . . . . . . . Times Spotted 69 | . 5 4 . 4 5 . 5 3 9 . 1 . 9 . 24 Peak Tracking Total 12 | . 3 3 . 3 4 . 3 4 4 . 1 . 5 . 12 Tactical Retreats 7 | . . . . . . . . 1 1 . . . . . 5 Traps | -11 -10 -10 -10 -9 -8 -7 -7 -7 -6 -5 -5 -5 -5 -5 -4 ------- Run | Yrd Mat Min Exi Min Mat Fac Low Low Fac Fac Was Fac Upp Upp Fac Traps Triggered 6 | . . . . . . . . . 1 3 . . . . 2 Indirectly . | . . . . . . . . . . . . . . . . Trap Hack Attempts . | . . . . . . . . . . . . . . . . Triggered . | . . . . . . . . . . . . . . . . Disarmed . | . . . . . . . . . . . . . . . . Reprogrammed . | . . . . . . . . . . . . . . . . Reused . | . . . . . . . . . . . . . . . . Traps Extracted . | . . . . . . . . . . . . . . . . Installed . | . . . . . . . . . . . . . . . . Triggered 1 | . . . . . . . . 1 . . . . . . . Most Traps Carried 3 | . . . . 3 3 . . . . . . . . . . Machines | -11 -10 -10 -10 -9 -8 -7 -7 -7 -6 -5 -5 -5 -5 -5 -4 ---------- Run | Yrd Mat Min Exi Min Mat Fac Low Low Fac Fac Was Fac Upp Upp Fac Machines Disabled 35 | . . . . . 2 . . . 31 . . . . . 2 Max in Single Turn 20 | . . . . . 1 . . . 20 . . . . . 1 Garrison Access 1 | . . . . . . . . . . . . . . . 1 Machines Repaired . | . . . . . . . . . . . . . . . . Machines Dismantled . | . . . . . . . . . . . . . . . . Machines Sabotaged . | . . . . . . . . . . . . . . . . Overloaded Fab Kills . | . . . . . . . . . . . . . . . . Hacking | -11 -10 -10 -10 -9 -8 -7 -7 -7 -6 -5 -5 -5 -5 -5 -4 --------- Run | Yrd Mat Min Exi Min Mat Fac Low Low Fac Fac Was Fac Upp Upp Fac Machines Accessed 18 | . 1 . 1 . 1 1 1 . 7 5 . . . . 1 Terminals 10 | . 1 . . . 1 1 . . 5 2 . . . . . Fabricators 2 | . . . . . . . . . 1 1 . . . . . Repair Stations . | . . . . . . . . . . . . . . . . Recycling Units 2 | . . . . . . . . . . 1 . . . . 1 Scanalyzers 2 | . . . . . . . . . 1 1 . . . . . Garrison Access . | . . . . . . . . . . . . . . . . Total Hacks 49 | . 2 . 1 . 3 3 7 . 21 10 . . . . 2 Successful 29 | . 1 . 1 . 1 2 7 . 13 3 . . . . 1 Failed 20 | . 1 . . . 2 1 . . 8 7 . . . . 1 Catastrophic 7 | . 1 . . . . . . . 3 2 . . . . 1 Database Lockouts . | . . . . . . . . . . . . . . . . Manual 8 | . . . 1 . . . . . 5 2 . . . . . Terminals 27 | . 2 . . . 3 3 . . 16 3 . . . . . Fabricators 3 | . . . . . . . . . 2 1 . . . . . Repair Stations . | . . . . . . . . . . . . . . . . Recycling Units 5 | . . . . . . . . . . 3 . . . . 2 Scanalyzers 6 | . . . . . . . . . 3 3 . . . . . Garrison Access . | . . . . . . . . . . . . . . . . Terminal Hacks 20 | . 1 . 1 . 1 2 7 . 8 . . . . . . Record 12 | . . . . . . 1 7 . 4 . . . . . . Prototype ID Bank 2 | . . . . . . 1 . . 1 . . . . . . Open DSF 1 | . . . . . . . . . 1 . . . . . . Locate Traps 1 | . . . . . . . . . 1 . . . . . . Investigation Status 1 | . 1 . . . . . . . . . . . . . . Reinforcement Status 1 | . . . . . . . . . 1 . . . . . . Zone Layout 1 | . . . . . 1 . . . . . . . . . . Derelict Proto ID Bank 1 | . . . 1 . . . . . . . . . . . . Fabricator Hacks 2 | . . . . . . . . . 1 1 . . . . . Build 2 | . . . . . . . . . 1 1 . . . . . Repair Station Hacks . | . . . . . . . . . . . . . . . . Recycling Unit Hacks 1 | . . . . . . . . . . . . . . . 1 Retrieve Components 1 | . . . . . . . . . . . . . . . 1 Scanalyzer 5 | . . . . . . . . . 3 2 . . . . . Insert Component 3 | . . . . . . . . . 2 1 . . . . . Analyze 2 | . . . . . . . . . 1 1 . . . . . Garrison Access Hacks . | . . . . . . . . . . . . . . . . Unauthorized Hacks 1 | . . . . . . . . . 1 . . . . . . Terminals 1 | . . . . . . . . . 1 . . . . . . Track 1 | . . . . . . . . . 1 . . . . . . Fabricators . | . . . . . . . . . . . . . . . . Repair Stations . | . . . . . . . . . . . . . . . . Recycling Units . | . . . . . . . . . . . . . . . . Scanalyzers . | . . . . . . . . . . . . . . . . Garrison Access . | . . . . . . . . . . . . . . . . Data Cores Recovered 1 | . . . . . . . . . 1 . . . . . . Used 1 | . . . . . . . . . 1 . . . . . . Hacking Detections 15 | . 1 . . . 1 1 . . 7 4 . . . . 1 Full Trace Events 9 | . . . . . . 1 . . 4 3 . . . . 1 Feedback Events 1 | . . . . . . . . . 1 . . . . . . Corruption 1 | . . . . . . . . . 1 . . . . . . Feedback Blocked . | . . . . . . . . . . . . . . . . Robot Schematics Acquired . | . . . . . . . . . . . . . . . . Robots Built . | . . . . . . . . . . . . . . . . Authchips . | . . . . . . . . . . . . . . . . Time 40 | . . . . . . . . . 40 . . . . . . Total Robot Build Rating . | . . . . . . . . . . . . . . . . Part Schematics Acquired 2 | . . . . . . . . . 1 1 . . . . . Parts Built 2 | . . . . . . . . . . 2 . . . . . Authchips . | . . . . . . . . . . . . . . . . Time 69 | . . . . . . . . . . 69 . . . . . Total Part Build Rating 18 | . . . . . . . . . . 18 . . . . . Parts Repaired . | . . . . . . . . . . . . . . . . Time . | . . . . . . . . . . . . . . . . Parts Recycled . | . . . . . . . . . . . . . . . . Recycled Matter . | . . . . . . . . . . . . . . . . Retrieved Matter . | . . . . . . . . . . . . . . . . Retrieved Components 10 | . . . . . . . . . . . . . . . 10 Parts Scanalyzed 2 | . . . . . . . . . 1 1 . . . . . Part Schematics Acquired 2 | . . . . . . . . . 1 1 . . . . . Parts Damaged . | . . . . . . . . . . . . . . . . Bothacking | -11 -10 -10 -10 -9 -8 -7 -7 -7 -6 -5 -5 -5 -5 -5 -4 ------------ Run | Yrd Mat Min Exi Min Mat Fac Low Low Fac Fac Was Fac Upp Upp Fac Used RIF Installer . | . . . . . . . . . . . . . . . . Robots Hacked 2 | . . . . . . . . . . 2 . . . . . Non-combat 2 | . . . . . . . . . . 2 . . . . . Combat . | . . . . . . . . . . . . . . . . Robot Hacks Applied 2 | . . . . . . . . . . 2 . . . . . parse_system 1 | . . . . . . . . . . 1 . . . . . find_chute 1 | . . . . . . . . . . 1 . . . . . Relay Couplers Released 2 | . . . . . . . . . . . . . . . 2 Machine Destruction 2 | . . . . . . . . . . . . . . . 2 Fabnet Peak Effective % . | . . . . . . . . . . . . . . . . Robots Rewired . | . . . . . . . . . . . . . . . . Allies Hacked . | . . . . . . . . . . . . . . . . Hacks Repelled . | . . . . . . . . . . . . . . . . Allies | -11 -10 -10 -10 -9 -8 -7 -7 -7 -6 -5 -5 -5 -5 -5 -4 -------- Run | Yrd Mat Min Exi Min Mat Fac Low Low Fac Fac Was Fac Upp Upp Fac Total Allies 22 | . . . . 2 . . . . . . 20 . . . . Largest Group 20 | . . . . 2 2 2 1 1 . . 20 19 19 17 17 Highest-Rated Group 665 | . . . . 54 54 54 23 18 . . 665 640 640 569 569 Highest-Rated Ally 50 | . . . . 31 31 31 23 18 . . 50 50 50 50 50 Total Orders . | . . . . . . . . . . . . . . . . Ally Attacks 131 | . . . . 17 10 . 1 3 . . 17 . 30 . 53 Total Damage 3046 | . . . . 152 90 . 17 50 . . 610 . 1061 . 1066 Kills 25 | . . . . 5 2 . 1 1 . . 1 . 11 . 4 Allies Corrupted 1 | . . . . . . . . . . . . . . . 1 Allies Melted . | . . . . . . . . . . . . . . . . Intel | -11 -10 -10 -10 -9 -8 -7 -7 -7 -6 -5 -5 -5 -5 -5 -4 ------- Run | Yrd Mat Min Exi Min Mat Fac Low Low Fac Fac Was Fac Upp Upp Fac Robot Analysis Total . | . . . . . . . . . . . . . . . . Derelict Logs Recovered 6 | . . 1 . 1 . . 3 . . . . . 1 . . Drone Launches . | . . . . . . . . . . . . . . . . Drone Recoveries . | . . . . . . . . . . . . . . . . Exploration | -11 -10 -10 -10 -9 -8 -7 -7 -7 -6 -5 -5 -5 -5 -5 -4 ------------- Run | Yrd Mat Min Exi Min Mat Fac Low Low Fac Fac Was Fac Upp Upp Fac Turns Passed 5366 | 54 165 121 474 702 214 62 857 73 398 151 350 181 669 36 859 Spaces Moved 4281 | 44 68 78 394 468 238 65 895 159 590 223 186 106 438 14 315 Core 3 | 3 . . . . . . . . . . . . . . . Treads . | . . . . . . . . . . . . . . . . Legs 1025 | . . 57 394 468 9 . . . . . . . . . 97 Wheels 130 | 41 68 21 . . . . . . . . . . . . . Hover . | . . . . . . . . . . . . . . . . Flight 3123 | . . . . . 229 65 895 159 590 223 186 106 438 14 218 Fastest Speed 20 | 50 90 90 120 120 26 20 20 23 23 23 23 23 24 29 25 Average Speed 49 | 88 90 111 120 120 29 20 22 24 23 23 25 23 27 29 64 Slowest Speed 295 | 100 90 120 120 120 120 23 23 27 23 23 27 24 29 29 295 Overloaded Moves . | . . . . . . . . . . . . . . . . Propulsion Burnouts . | . . . . . . . . . . . . . . . . Robots Hopped 3 | . . . . . 1 . . . 1 . 1 . . . . Cave-ins Triggered . | . . . . . . . . . . . . . . . . Exploration Rate (%) 34 | 4 13 26 80 83 26 2 98 18 28 7 88 4 61 7 10 Regions Visited 15 Branch Regions 7 Pre-discovered Areas 1 | . . . . . . . 1 . . . . . . . . Known Exits Taken 2 | . . . . . . . 1 . 1 . . . . . . Unknown Exits Taken 11 | 1 1 1 1 1 1 1 . 1 . . . 1 1 1 . Scrap Searched 10 | . . 1 . 2 . . 3 2 . . . . 2 . . Spaces Dug 23 | . . . . . . . . . 2 1 . . . . 20 Terrain Destroyed 247 | . . . . . 2 . 72 12 89 1 . . 1 . 70 Melee . | . . . . . . . . . . . . . . . . Projectile 39 | . . . . . 2 . 1 . 4 1 . . 1 . 30 AOE 208 | . . . . . . . 71 12 85 . . . . . 40 Terrain Rammed . | . . . . . . . . . . . . . . . . Walls Destroyed . | . . . . . . . . . . . . . . . . Machines Disabled . | . . . . . . . . . . . . . . . . Actions | -11 -10 -10 -10 -9 -8 -7 -7 -7 -6 -5 -5 -5 -5 -5 -4 --------- Run | Yrd Mat Min Exi Min Mat Fac Low Low Fac Fac Was Fac Upp Upp Fac Total 7292 | 55 154 109 394 593 350 112 1526 189 827 320 488 261 982 45 887 Wait 2670 | . 77 16 . 102 60 42 603 25 182 83 299 152 528 32 469 Move 4261 | 43 67 77 393 467 235 64 894 158 587 223 183 105 437 13 315 Hop 3 | . . . . . 1 . . . 1 . 1 . . . . Pick Up 51 | 3 . 7 . 3 13 1 4 2 4 4 1 . 4 . 5 Fast Attach 39 | 6 . 1 1 1 4 1 4 . 7 . 1 2 1 . 10 Attach 22 | . . 1 . . 6 2 . 1 1 3 . . 2 . 6 Detach 2 | . . . . . . . . . . . . . 1 . 1 Swap 16 | 2 1 . . 1 4 1 2 . 2 1 . . 1 . 1 Drop 55 | 1 . 4 . 3 13 1 6 1 10 2 3 2 5 . 4 Fire 140 | . 9 3 . 16 14 . 13 2 15 4 . . 3 . 61 Melee . | . . . . . . . . . . . . . . . . Ram . | . . . . . . . . . . . . . . . . Kick . | . . . . . . . . . . . . . . . . Crush . | . . . . . . . . . . . . . . . . Escape Stasis 33 | . . . . . . . . . 18 . . . . . 15 Rewire . | . . . . . . . . . . . . . . . . Trap . | . . . . . . . . . . . . . . . . Miscellaneous . | . . . . . . . . . . . . . . . . Route ------- -11/Scrapyard -10/Materials -10/Mines (discovered 2 exits: [*Mat] / *Exi) -10/Exiles -9/Mines -8/Materials -7/Factory -7/Lower Caves -7/Lower Caves -6/Factory (discovered 3 exits: *Fac x2 / [*Low]) -5/Factory -5/Waste -5/Factory -5/Upper Caves -5/Upper Caves -4/Factory History --------- Turn | Location | Event 17 | -11/Scrapyard | Discovered new exit (range 15) 55 | -11/Scrapyard | Entered Materials 65 | -10/Materials | Discovered new exit (range 11) 204 | -10/Materials | Met 8R-AWN 220 | -10/Materials | Entered Mines 223 | -10/Mines | Followed 8R-AWN into the Mines 308 | -10/Mines | Build established: Mutant 313 | -10/Mines | Discovered new exit (range 6) 335 | -10/Mines | Discovered new exit (range 5) 341 | -10/Mines | Entered Exiles 371 | -10/Exiles | Welcomed by 8R-AWN 391 | -10/Exiles | Met EX-HEX 434 | -10/Exiles | Met EX-BIN 451 | -10/Exiles | Aligned with FarCom system 452 | -10/Exiles | Given EX-Vault access code 482 | -10/Exiles | Opened EX-Vault 488 | -10/Exiles | Found 0b10 Alert Chip 512 | -10/Exiles | Warned to stay clear of 0b10 Research branches 547 | -10/Exiles | Met EX-DEC 625 | -10/Exiles | Visited The Gauntlet 773 | -10/Exiles | Learned about 8R-AWN's background 801 | -10/Exiles | Discovered new exit (range 14) 815 | -10/Exiles | Left Exiles lab with 0b10 Alert Chip 815 | -10/Exiles | Entered Mines 1069 | -9/Mines | Assembled infested the area 1091 | -9/Mines | Found a hidden stash of uninstalled traps 1292 | -9/Mines | Learned Materials terminal intel 1362 | -9/Mines | A weapon hastily lodged in a ceiling crevice suddenly fell to the ground 1497 | -9/Mines | Discovered new exit (range 13) 1517 | -9/Mines | Entered Materials 1517 | -8/Materials | Accompanied by 2 allies 1517 | -8/Materials | Evolved 4 slots: Propulsion x2, Utility x1, Weapon x1 1518 | -8/Materials | Loaded intel: 12 terminal locations 1522 | -8/Materials | Led the pair of lost Derelicts to an unsafe place 1715 | -8/Materials | Discovered new exit (range 16) 1731 | -8/Materials | Entered Factory 1731 | -7/Factory | Accompanied by 2 allies 1731 | -7/Factory | Evolved 2 slots: Propulsion x2 1759 | -7/Factory | Discovered new exit (range 9) 1793 | -7/Factory | Entered Lower Caves 1793 | -7/Lower Caves | Accompanied by 1 ally 1822 | -7/Lower Caves | Build established: Sprinter 2029 | -7/Lower Caves | Learned location of Extension (-5) 2029 | -7/Lower Caves | Learned location of 1 exit from Factory 2029 | -7/Lower Caves | Learned location of 1 exit from Research 2029 | -7/Lower Caves | Learned Armory trap positions 2030 | -7/Lower Caves | Identified exit to Lower Caves 2144 | -7/Lower Caves | Encountered a Warlord checkpoint 2191 | -7/Lower Caves | Learned Factory non-interactive machine intel 2192 | -7/Lower Caves | Learned Factory security intel 2650 | -7/Lower Caves | Entered another Lower Caves area 2650 | -7/Lower Caves | Accompanied by 1 ally 2652 | -7/Lower Caves | Attracted the attention of an 0b10 checkpoint 2668 | -7/Lower Caves | Discovered new exit (range 9) 2723 | -7/Lower Caves | Entered Factory 2723 | -6/Factory | Evolved 2 slots: Power x1, Utility x1 2724 | -6/Factory | Identified exit to Factory 2726 | -6/Factory | Loaded intel: 187 non-interactive machine locations 2776 | -6/Factory | Discovered new exit (range 14) 3037 | -6/Factory | Build established: Scout 3064 | -6/Factory | Discovered exit to Factory (range 19) 3111 | -6/Factory | Fabricated T-07 Excavator? 3121 | -6/Factory | Entered another Factory area 3121 | -5/Factory | Evolved 2 slots: Utility x2 3203 | -5/Factory | Fabricated Rnf. Quantum Reactor (x2) 3271 | -5/Factory | Lost 3 parts (1p1u1w) 3272 | -5/Factory | Manually triggered Chute Trap 3272 | -5/Factory | Sucked down chute 3272 | -5/Factory | Entered Waste 3273 | -5/Waste | Joined by Warlord forces that had cleared the area 3467 | -5/Waste | Discovered new exit (range 11) 3522 | -5/Waste | A Compactor rumbled back to life 3522 | -5/Waste | Spotted C-40 Crusher 3529 | -5/Waste | Allies destroyed C-40 Crusher 3622 | -5/Waste | A Compactor rumbled back to life 3622 | -5/Waste | Spotted C-40 Crusher 3622 | -5/Waste | Entered Factory 3622 | -5/Factory | Accompanied by 19 allies 3738 | -5/Factory | Discovered new exit (range 5) 3803 | -5/Factory | Entered Upper Caves 3803 | -5/Upper Caves | Accompanied by 19 allies 3840 | -5/Upper Caves | Ambushed by wild Derelicts 3845 | -5/Upper Caves | Learned Factory garrison access intel 3880 | -5/Upper Caves | Found DCF Scrap (15 items) 3902 | -5/Upper Caves | Encountered a Warlord checkpoint 4109 | -5/Upper Caves | Build established: Sprinter 4395 | -5/Upper Caves | Discovered new exit (range 15) 4406 | -5/Upper Caves | Attracted the attention of an 0b10 checkpoint 4472 | -5/Upper Caves | Entered another Upper Caves area 4472 | -5/Upper Caves | Accompanied by 17 allies 4474 | -5/Upper Caves | Discovered new exit (range 12) 4508 | -5/Upper Caves | Entered Factory 4508 | -4/Factory | Accompanied by 17 allies 4508 | -4/Factory | Evolved 2 slots: Propulsion x1, Utility x1 4509 | -4/Factory | Loaded intel: 3 garrison access locations 4664 | -4/Factory | Lost 6 parts (1p3n2w) 4685 | -4/Factory | Lost 11 allies 4726 | -4/Factory | Lost 5 parts (2n2u1w) 5008 | -4/Factory | Build established: Scavenger-Skirmisher 5341 | -4/Factory | System corruption reached 10% 5367 | -4/Factory | Self-destructed Last Messages --------------- 05352_ Hvy. Battle Rifle destroyed. 05352_ U-05 Engineer lays Concrete. 05355_ U-05 Engineer destroyed. 05355_ U-05 Engineer lays Concrete. 05357_ Slug penetrates P-70 Sage. 05357_ P-70 Sage resets P-70 Sage, system corruption cleaned. 05357_ U-05 Engineer lays Concrete. 05359_ Imp. VSS Leg destroyed. 05359_ Slug penetrates P-70 Sage. 05359_ U-05 Engineer lays Concrete. 05360_ Hrd. Light Armor Plating destroyed. 05360_ U-05 Engineer lays Concrete. 05363_ Destroyed Imp. Remote Datajack. 05363_ U-05 Engineer lays Concrete. 05365_ Slug penetrates P-70 Sage. 05365_ P-70 Sage destroyed. 05365_ Slug penetrates Door. 05365_ U-05 Engineer lays Concrete. 05366_ Railgun destroyed. 05366_ U-05 Engineer lays Concrete. Map ----- +----------------------------------------------------+ | ?????????????????????????????????????????????????? | | ?????????????????????????????????????????????????? | | ?????????????????????????????????????????????????? | | ?????????????????????????????????????????????????? | | ?????????????????????????????????????????????????? | | ?????????????????????????????????????????????????? | | ?????????????????????????????????????????????????? | | ?????????????????????????????????????????????????? | | ?????????????????????????????????????????????????? | | ?????????????????????????????????????????????????? | | ?????????????????????????????????????????????????? | | ???????????????############???????""T""??????????? | | ????????????#??# ! #???????"""""??????????? | | ????????????? ## "" #??????????????????????? | | ?????????????# # ! G" #??????????????????????? | | ??????????????#; "" #??????????????????????? | | ???????????????# uu #??????????????????????? | | ???????????????# u #??????????????????????? | | ???????????????# u #??????????????????????? | | ???????????????# u #??????????????????????? | | ???????????????# #??????????????????????? | | ???????????????# u #?????????????#????????? | | ???????????????# #???????????? #????????? | | ???????????????# #??????????? #????????? | | ???????????????# p #?????????? #????????? | | ???????????????# p*@#????????? #????????? | | ???????????????# %p #???????? s #????????? | | ????"""?"""????#+##;;############## s #######??? | | ????"""?"""????# ss ??? | | ????"""?"""????# ?? | | ???????????????# ?? | | ????"""?"""????+ ? | | ????"""?"""????# ^ g g ? | | ????"""?"""????# g ? | | ???????????????# [ g ? | | ???????????????#####+#+#################### ? | | ???????????????# ????# #??????? | | ???????????????# ??# #?? ??? | | ?????????????????""""""" # """ """ """ # ? | | ?????????????????""""""" # """ """ """ / ???? | | ?????????????????""""""" # """ """ """ #??????? | | ?????????????????""""""" # #??????? | | ???????????????? ?# ""Y"" #??????? | | ???????????????? """""""??# """"" #??????? | | ???????????????? """""""??#################??????? | | ?????????????????"""""""???????############??????? | | ?????????????????"""""""???????# # """ #??????? | | ??????????????????? ??????????# # "Y" #??????? | | ?????????????????""T""?????#######="*" #??????? | | ?????????????????"""""?????# # ! == #??????? | +----------------------------------------------------+ Best States ------------- Heat Dissipation 70 Coolant Potential 100 Energy Generation 45 Energy Capacity 590 Matter Stores 300 Matter Capacity 300 Sight Range 22 Terrain Scan Density 10 Additional Mass Support 9 Armor Coverage 150 Evasion (%) 66 Offensive Hacking 10 Authchip Count 1 Item Schematics ----------------- Remote Datajack | -6/Factory | Scanalyzed Machine Analyzer | -5/Factory | Scanalyzed Robot Schematics ------------------ None Fabricated ------------ Rnf. Quantum Reactor | x2 | -5/Factory | Preloaded Alien Tech Used ----------------- None Achievements -------------- Can't Catch Me It Was An Accident, I Swear Party Time We Are Legion Wheee! Challenges ------------ None Game ------ Seed PhasingAntimatterArchive Manual? 0 Play Time 01:38:54 Cumulative 21.5 hours Start 2025.03.20 @ 18:51:36 End 2025.03.20 @ 20:47:12 Sessions 1 Manual Loads 0 Difficulty Rogue Special Mode None Game No. 26 Rogue 25 Adventurer 1 Explorer 0 Win Type - Total 0 Types 0/0/0/0/0/0/0/0/0 Lore% 23 Gallery% 23 Achievement% 23 Wizard Run 0 Options --------- Layout 0 ASCII 0 Keyboard 0 Movement Mouse Keybinds 0 Fullscreen 1 Font 16/SmallcapsGlow Map View 75x55 Zoom Use 0% Tactical HUD 1 Map Filters NONE Filters NONE Steam 1 RUN: b89b173a-0812-4cbe-b04e-995fe3d31ca3